fUSD/lending_fUSD_20260621
["ID","MTS","AMOUNT","RATE_DAILY","PERIOD"]
[425839973,1781971846000,-50000.0,0.000285,7]
[425839981,1781971846000,-916.97,0.000286,7]
[425839989,1781971846000,-573.64,0.00028767,2]
[425839983,1781971846000,-262.97,0.00028707,7]
[425839984,1781971846000,-905.21,0.00028707,7]
[425839982,1781971846000,-362.71127457,0.00028698,7]
[425839987,1781971846000,-158.28,0.00028767,2]
[425839988,1781971846000,-250.0,0.00028767,10]
[425839985,1781971846000,-248.89,0.00028708,7]
[425839990,1781971846000,-150.0,0.00028767,2]
[425839998,1781971846000,-500.0,0.000289,14]
[425839977,1781971846000,-376.67,0.00028516,30]
[425840001,1781971846000,-500.0,0.000289,14]
[425839986,1781971846000,-299.54367018,0.00028766,2]
[425839965,1781971846000,-500.01116265,0.00028493,2]
[425839953,1781971846000,-500.0,0.00028493,2]
[425839964,1781971846000,-500.0,0.00028493,2]
[425839999,1781971846000,-500.0,0.000289,14]
[425839942,1781971846000,-500.0,0.00028493,2]
[425839943,1781971846000,-500.0,0.00028493,2]
[425839941,1781971846000,-500.0,0.00028493,2]
[425839944,1781971846000,-500.0,0.00028493,2]
[425839945,1781971846000,-500.0,0.00028493,2]
[425839947,1781971846000,-500.0,0.00028493,2]
[425839946,1781971846000,-500.0,0.00028493,2]
[425839949,1781971846000,-500.0,0.00028493,2]
[425839951,1781971846000,-500.0,0.00028493,2]
[425839948,1781971846000,-286.01668497,0.00028493,2]
[425839950,1781971846000,-500.0,0.00028493,2]
[425839955,1781971846000,-500.0,0.00028493,2]
[425839952,1781971846000,-500.0,0.00028493,2]
[425839954,1781971846000,-500.0,0.00028493,2]
[425839957,1781971846000,-500.0,0.00028493,2]
[425839956,1781971846000,-580.0,0.00028493,2]
[425839959,1781971846000,-150.0,0.00028493,2]
[425839960,1781971846000,-500.0,0.00028493,2]
[425839963,1781971846000,-500.0,0.00028493,2]
[425839961,1781971846000,-500.0,0.00028493,2]
[425839962,1781971846000,-500.0,0.00028493,2]
[425840000,1781971846000,-500.0,0.000289,14]
[425839958,1781971846000,-500.0,0.00028493,2]
[425839993,1781971846000,-159.04,0.00028792,30]
[425840020,1781971846000,-262.97,0.00028993,2]
[425840024,1781971846000,-42553.95932891,0.00029,2]
[425840023,1781971846000,-285.3,0.00029,2]
[425840026,1781971846000,-7004.77355279,0.00029,2]
[425840025,1781971846000,-11248.67831224,0.00029,2]
[425840034,1781971846000,-500.0,0.00029,2]
[425840027,1781971846000,-4437.65533144,0.00029,2]
[425840032,1781971846000,-500.0,0.00029,2]
[425840031,1781971846000,-500.0,0.00029,2]
[425840029,1781971846000,-13005.07196143,0.00029,2]
[425840019,1781971846000,-6780.35,0.00028973,2]
[425840030,1781971846000,-500.0,0.00029,2]
[425840028,1781971846000,-220.18135795,0.00029,2]
[425840035,1781971846000,-500.0,0.00029,2]
[425840037,1781971846000,-500.0,0.00029,2]
[425840036,1781971846000,-500.0,0.00029,2]
[425840041,1781971846000,-249.99325174,0.00029,2]
[425840040,1781971846000,-189.17650991,0.00029,2]
[425840039,1781971846000,-270.54865887,0.00029,2]
[425840038,1781971846000,-500.0,0.00029,2]
[425840042,1781971846000,-9946.39,0.00029,2]
[425839991,1781971846000,-482.42,0.00028771,2]
[425840033,1781971846000,-500.0,0.00029,2]
[425840022,1781971846000,-248.89,0.00028993,2]
[425839970,1781971846000,-1100.3,0.000285,7]
[425840021,1781971846000,-905.21,0.00028993,2]
[425839994,1781971846000,-207.0,0.0002882,30]
[425839995,1781971846000,-1112.85664139,0.00028894,3]
[425839996,1781971846000,-2084.29704525,0.000289,2]
[425839992,1781971846000,-505.0,0.0002878,10]
[425839997,1781971846000,-343.0,0.000289,2]
[425840003,1781971846000,-150.0,0.000289,5]
[425840013,1781971846000,-156.0,0.00028938,30]
[425840004,1781971846000,-151.0,0.00028918,30]
[425840011,1781971846000,-154.0,0.00028938,30]
[425840007,1781971846000,-220.0,0.00028918,30]
[425840002,1781971846000,-300.0,0.000289,10]
[425840010,1781971846000,-193.57,0.00028927,2]
[425840017,1781971846000,-228.0,0.00028938,30]
[425840012,1781971846000,-255.0,0.00028938,30]
[425840009,1781971846000,-156.0,0.00028918,30]
[425840005,1781971846000,-158.0,0.00028918,30]
[425840018,1781971846000,-250.70649218,0.00028973,2]
[425840008,1781971846000,-287.0,0.00028918,30]
[425840014,1781971846000,-183.0,0.00028938,30]
[425840015,1781971846000,-941.0,0.00028938,30]
[425840016,1781971846000,-152.0,0.00028938,30]
[425840006,1781971846000,-158.0,0.00028918,30]
[425840043,1781971847000,-212346.66002435,0.00029,3]
[425840044,1781971847000,-4346.14387728,0.00029,3]
[425840072,1781971852000,-3000.0,0.00029266,3]
[425840073,1781971852000,-262.97,0.00029279,30]
[425840070,1781971852000,-350.0,0.00029257,13]
[425840075,1781971852000,-150.0,0.000293,2]
[425840077,1781971852000,-1783.53,0.00029452,2]
[425840078,1781971852000,-644.79446245,0.00029461,2]
[425840079,1781971852000,-804.17102365,0.00029461,2]
[425840080,1781971852000,-19244.30751339,0.000295,2]
[425840082,1781971852000,-392.0,0.00029537,2]
[425840081,1781971852000,-350.0,0.00029502,30]
[425840094,1781971852000,-6780.35,0.00029658,2]
[425840084,1781971852000,-500.0,0.0002957,2]
[425840087,1781971852000,-482.4,0.00029589,2]
[425840085,1781971852000,-1000.0,0.0002957,2]
[425840086,1781971852000,-1020.28,0.00029589,2]
[425840088,1781971852000,-3000.0,0.00029589,2]
[425840092,1781971852000,-392.0,0.00029632,2]
[425840091,1781971852000,-251.0,0.00029607,2]
[425840090,1781971852000,-482.24,0.000296,2]
[425840095,1781971852000,-392.0,0.00029667,2]
[425840071,1781971852000,-350.0,0.00029257,13]
[425840097,1781971852000,-9990.40596281,0.000297,2]
[425840083,1781971852000,-11441.84421211,0.0002955,2]
[425840074,1781971852000,-248.89,0.00029279,30]
[425840058,1781971852000,-170.49,0.00029,30]
[425840068,1781971852000,-175.88,0.00029232,30]
[425840045,1781971852000,-67597.27859654,0.00029,3]
[425840047,1781971852000,-798.0,0.00029,30]
[425840046,1781971852000,-1500.0,0.00029,15]
[425840049,1781971852000,-1500.0,0.00029,15]
[425840048,1781971852000,-798.16101857,0.00029,30]
[425840055,1781971852000,-288.70931965,0.00029,2]
[425840052,1781971852000,-1500.0,0.00029,15]
[425840054,1781971852000,-1847.703119,0.00029,15]
[425840050,1781971852000,-1500.0,0.00029,15]
[425840053,1781971852000,-1500.0,0.00029,15]
[425840051,1781971852000,-1500.0,0.00029,15]
[425840057,1781971852000,-1142.82084581,0.00029,2]
[425840067,1781971852000,-601.97,0.000291,2]
[425840056,1781971852000,-280.53,0.00029,7]
[425840098,1781971852000,-565.65666117,0.000297,2]
[425840059,1781971852000,-310.0,0.00029,2]
[425840062,1781971852000,-1866.24356,0.00029,2]
[425840061,1781971852000,-1000.0,0.00029,2]
[425840060,1781971852000,-1000.0,0.00029,2]
[425840063,1781971852000,-3000.0,0.00029041,2]
[425840064,1781971852000,-9356.56929562,0.000291,2]
[425840066,1781971852000,-601.96,0.000291,2]
[425840065,1781971852000,-404.28,0.000291,2]
[425840076,1781971852000,-2372.0,0.00029421,10]
[425840093,1781971852000,-392.0,0.00029645,2]
[425840069,1781971852000,-200.0,0.00029244,2]
[425840099,1781971852000,-280.53,0.000297,7]
[425840130,1781971852000,-500.0,0.000299,7]
[425840128,1781971852000,-500.0,0.000299,7]
[425840133,1781971852000,-500.0,0.000299,7]
[425840132,1781971852000,-500.0,0.000299,7]
[425840131,1781971852000,-500.0,0.000299,7]
[425840129,1781971852000,-500.0,0.000299,7]
[425840134,1781971852000,-500.0,0.000299,7]
[425840135,1781971852000,-500.0,0.000299,7]
[425840139,1781971852000,-500.0,0.000299,7]
[425840136,1781971852000,-500.0,0.000299,7]
[425840144,1781971852000,-500.0,0.000299,7]
[425840137,1781971852000,-500.0,0.000299,7]
[425840143,1781971852000,-500.0,0.000299,7]
[425840141,1781971852000,-500.0,0.000299,7]
[425840140,1781971852000,-500.0,0.000299,7]
[425840138,1781971852000,-500.0,0.000299,7]
[425840142,1781971852000,-500.0,0.000299,7]
[425840146,1781971852000,-151.0,0.00029918,30]
[425840148,1781971852000,-158.0,0.00029918,30]
[425840149,1781971852000,-220.0,0.00029918,30]
[425840147,1781971852000,-158.0,0.00029918,30]
[425840145,1781971852000,-558.49,0.000299,7]
[425840096,1781971852000,-160.0,0.00029688,2]
[425840127,1781971852000,-500.0,0.000299,7]
[425840125,1781971852000,-500.0,0.000299,7]
[425840089,1781971852000,-184.91,0.00029591,2]
[425840123,1781971852000,-500.0,0.000299,7]
[425840100,1781971852000,-226.0,0.00029708,2]
[425840126,1781971852000,-500.0,0.000299,7]
[425840102,1781971852000,-392.0,0.00029761,2]
[425840101,1781971852000,-392.0,0.00029748,2]
[425840103,1781971852000,-392.0,0.00029762,2]
[425840108,1781971852000,-392.0,0.00029777,2]
[425840104,1781971852000,-1000.0,0.0002977,2]
[425840106,1781971852000,-500.0,0.0002977,2]
[425840105,1781971852000,-500.0,0.0002977,2]
[425840109,1781971852000,-2542.45942061,0.00029782,2]
[425840111,1781971852000,-150.0,0.000298,10]
[425840110,1781971852000,-1020.28,0.00029795,2]
[425840107,1781971852000,-1000.0,0.0002977,2]
[425840115,1781971852000,-165.0,0.0002988,7]
[425840124,1781971852000,-500.0,0.000299,7]
[425840119,1781971852000,-500.0,0.000299,7]
[425840114,1781971852000,-209.09120948,0.00029863,2]
[425840121,1781971852000,-500.0,0.000299,7]
[425840118,1781971852000,-500.0,0.000299,7]
[425840117,1781971852000,-500.0,0.000299,7]
[425840122,1781971852000,-384.16976804,0.000299,2]
[425840120,1781971852000,-500.0,0.000299,7]
[425840116,1781971852000,-300.0,0.000299,10]
[425840112,1781971852000,-775.34865008,0.00029806,2]
[425840113,1781971852000,-150.0,0.0002985,2]
[425840158,1781971853000,-152.0,0.00029938,30]
[425840152,1781971853000,-1127.3,0.00029938,7]
[425840150,1781971853000,-287.0,0.00029918,30]
[425840155,1781971853000,-156.0,0.00029938,30]
[425840154,1781971853000,-255.0,0.00029938,30]
[425840153,1781971853000,-154.0,0.00029938,30]
[425840159,1781971853000,-228.0,0.00029938,30]
[425840151,1781971853000,-156.0,0.00029918,30]
[425840165,1781971853000,-578685.14186206,0.0002998,7]
[425840160,1781971853000,-1000.0,0.0002997,2]
[425840156,1781971853000,-183.0,0.00029938,30]
[425840162,1781971853000,-151.0,0.00029977,7]
[425840163,1781971853000,-151.0,0.00029977,7]
[425840161,1781971853000,-500.0,0.0002997,2]
[425840164,1781971853000,-2997.35329111,0.0002998,15]
[425840166,1781971853000,-400153.25211174,0.0002998,7]
[425840157,1781971853000,-941.0,0.00029938,30]
[425840167,1781971862000,-160.0,0.000149,2]
[425840168,1781971862000,-154.95979436,0.000149,2]
[425840169,1781971913000,2000.6791,0.00011363,2]
[425840172,1781971930000,500.0,0.00014999,2]
[425840171,1781971930000,500.0,0.00014999,2]
[425840170,1781971930000,500.0,0.00014999,2]
[425840173,1781971930000,502.88269558,0.00014999,2]
[425840174,1781971943000,1000.0,0.0003013,120]
[425840175,1781971949000,1143.068933,0.000301,120]
[425840176,1781971952000,456.0148,0.000148,2]
[425840177,1781971953000,1094.0,0.0003013,120]
[425840178,1781971977000,500.0,0.00014999,2]
[425840180,1781971977000,500.0,0.00014999,2]
[425840179,1781971977000,500.0,0.00014999,2]
[425840182,1781971978000,384.67354223,0.00014999,2]
[425840181,1781971978000,500.0,0.00014999,2]
[425840183,1781971979000,514.82330446,0.00014999,2]
[425840185,1781972019000,500.0,0.00014999,2]
[425840184,1781972019000,500.0,0.00014999,2]
[425840188,1781972020000,500.0,0.00014999,2]
[425840187,1781972020000,500.0,0.00014999,2]
[425840186,1781972020000,500.0,0.00014999,2]
[425840191,1781972021000,500.0,0.00014999,2]
[425840190,1781972021000,500.0,0.00014999,2]
[425840189,1781972021000,500.0,0.00014999,2]
[425840192,1781972022000,502.40929125,0.00014999,2]
[425840193,1781972043000,178.59,0.00028661,120]
[425840194,1781972084000,500.0,0.00014999,2]
[425840195,1781972085000,500.0,0.00014999,2]
[425840198,1781972085000,500.0,0.00014999,2]
[425840197,1781972085000,500.0,0.00014999,2]
[425840196,1781972085000,500.0,0.00014999,2]
[425840199,1781972086000,620.75,0.00014999,2]
[425840201,1781972111000,500.0,0.00014999,2]
[425840200,1781972111000,500.0,0.00014999,2]
[425840203,1781972112000,500.0,0.00014999,2]
[425840202,1781972112000,500.0,0.00014999,2]
[425840204,1781972113000,500.0,0.00014999,2]
[425840206,1781972113000,500.0,0.00014999,2]
[425840205,1781972113000,500.0,0.00014999,2]
[425840209,1781972114000,500.0,0.00014999,2]
[425840208,1781972114000,500.0,0.00014999,2]
[425840207,1781972114000,500.0,0.00014999,2]
[425840210,1781972115000,500.0,0.00014999,2]
[425840215,1781972115000,500.0,0.00014999,2]
[425840214,1781972115000,500.0,0.00014999,2]
[425840213,1781972115000,500.0,0.00014999,2]
[425840212,1781972115000,500.0,0.00014999,2]
[425840211,1781972115000,500.0,0.00014999,2]
[425840217,1781972116000,500.0,0.00014999,2]
[425840216,1781972116000,500.0,0.00014999,2]
[425840218,1781972116000,296.46042487,0.00014999,2]
[425840220,1781972116000,500.0,0.00014999,2]
[425840221,1781972116000,502.03932463,0.00014999,2]
[425840219,1781972116000,500.0,0.00014999,2]
[425840223,1781972140000,500.0,0.00014999,2]
[425840222,1781972140000,500.0,0.00014999,2]
[425840226,1781972141000,500.0,0.00014999,2]
[425840225,1781972141000,500.0,0.00014999,2]
[425840224,1781972141000,500.0,0.00014999,2]
[425840230,1781972142000,500.0,0.00014999,2]
[425840229,1781972142000,500.0,0.00014999,2]
[425840228,1781972142000,500.0,0.00014999,2]
[425840227,1781972142000,500.0,0.00014999,2]
[425840231,1781972143000,500.0,0.00014999,2]
[425840232,1781972143000,500.0,0.00014999,2]
[425840233,1781972143000,500.0,0.00014999,2]
[425840234,1781972144000,500.0,0.00014999,2]
[425840235,1781972145000,500.0,0.00014999,2]
[425840237,1781972236000,500.0,0.00014999,2]
[425840236,1781972236000,500.0,0.00014999,2]
[425840241,1781972237000,500.0,0.00014999,2]
[425840240,1781972237000,500.0,0.00014999,2]
[425840239,1781972237000,500.0,0.00014999,2]
[425840238,1781972237000,500.0,0.00014999,2]
[425840244,1781972238000,500.0,0.00014999,2]
[425840243,1781972238000,500.0,0.00014999,2]
[425840242,1781972238000,500.0,0.00014999,2]
[425840245,1781972239000,626.4,0.00014999,2]
[425840246,1781972332000,362.436484,0.00014,2]
[425840248,1781972339000,500.0,0.00014999,2]
[425840247,1781972339000,500.0,0.00014999,2]
[425840252,1781972340000,371.43347382,0.00014999,2]
[425840251,1781972340000,500.0,0.00014999,2]
[425840250,1781972340000,500.0,0.00014999,2]
[425840249,1781972340000,500.0,0.00014999,2]
[425840255,1781972388000,500.0,0.00014999,2]
[425840254,1781972388000,500.0,0.00014999,2]
[425840253,1781972388000,500.0,0.00014999,2]
[425840256,1781972389000,500.0,0.00014999,2]
[425840257,1781972429000,500.0,0.00014999,2]
[425840258,1781972447000,341.83779729,0.00014999,2]
[425840259,1781972522000,500.0,0.00014999,2]
[425840261,1781972523000,500.0,0.00014999,2]
[425840260,1781972523000,500.0,0.00014999,2]
[425840265,1781972524000,500.0,0.00014999,2]
[425840264,1781972524000,500.0,0.00014999,2]
[425840263,1781972524000,500.0,0.00014999,2]
[425840262,1781972524000,500.0,0.00014999,2]
[425840268,1781972525000,500.0,0.00014999,2]
[425840267,1781972525000,500.0,0.00014999,2]
[425840266,1781972525000,500.0,0.00014999,2]
[425840269,1781972526000,500.0,0.00014999,2]
[425840270,1781972526000,500.0,0.00014999,2]
[425840271,1781972526000,500.0,0.00014999,2]
[425840274,1781972527000,476.32363416,0.00014999,2]
[425840273,1781972527000,500.0,0.00014999,2]
[425840272,1781972527000,500.0,0.00014999,2]
[425840275,1781972575000,151.05,0.00028985,120]
[425840276,1781972653000,151.0,0.0001404,2]
[425840277,1781972657000,151.0,0.0001404,2]
[425840278,1781972660000,151.0,0.0001404,2]
[425840279,1781972664000,151.0,0.0001404,2]
[425840280,1781972804000,-178.60022739,0.00015214,2]
[425840283,1781972804000,-82.35012905,0.00015215,2]
[425840282,1781972804000,-167.235031,0.00015214,2]
[425840281,1781972804000,-150.0,0.00015214,2]
[425840286,1781972887000,500.0,0.00014999,2]
[425840285,1781972887000,500.0,0.00014999,2]
[425840284,1781972887000,500.0,0.00014999,2]
[425840287,1781972903000,195.94876448,0.00030136,120]
[425840289,1781972916000,160.42,0.00028342,120]
[425840288,1781972916000,160.42,0.00025192,120]
[425840290,1781972928000,1345.19,0.00029452,120]
[425840291,1781972940000,2000.0,0.00030135,120]
[425840303,1781973031000,-68.64987095,0.00015215,2]
[425840304,1781973031000,-151.0,0.00015215,2]
[425840305,1781973031000,-141.3443911,0.00015215,2]
[425840309,1781973031000,-39.2464511,0.00015215,2]
[425840307,1781973031000,-151.0,0.00015215,2]
[425840308,1781973031000,-150.0,0.00015215,2]
[425840306,1781973031000,-9.6556089,0.00015215,2]
[425840365,1781973038000,-151.0,0.00015215,2]
[425840375,1781973038000,-150.0,0.00015216,2]
[425840372,1781973038000,-151.0,0.00015216,2]
[425840374,1781973038000,-151.0,0.00015216,2]
[425840371,1781973038000,-153.0,0.00015216,2]
[425840364,1781973038000,-151.0,0.00015215,2]
[425840367,1781973038000,-150.0,0.00015216,2]
[425840368,1781973038000,-151.0,0.00015216,2]
[425840366,1781973038000,-150.0,0.00015216,2]
[425840369,1781973038000,-151.0,0.00015216,2]
[425840370,1781973038000,-151.0,0.00015216,2]
[425840363,1781973038000,-151.0,0.00015215,2]
[425840353,1781973038000,-153.0,0.00015215,2]
[425840360,1781973038000,-150.0,0.00015215,2]
[425840361,1781973038000,-151.0,0.00015215,2]
[425840359,1781973038000,-150.0,0.00015215,2]
[425840355,1781973038000,-159.59311835,0.00015215,2]
[425840357,1781973038000,-151.0,0.00015215,2]
[425840358,1781973038000,-151.0,0.00015215,2]
[425840356,1781973038000,-152.0,0.00015215,2]
[425840354,1781973038000,-151.0,0.00015215,2]
[425840352,1781973038000,-153.0,0.00015215,2]
[425840351,1781973038000,-150.0,0.00015215,2]
[425840350,1781973038000,-111.7535489,0.00015215,2]
[425840373,1781973038000,-200.0,0.00015216,7]
[425840362,1781973038000,-151.0,0.00015215,2]
[425840377,1781973038000,-152.0,0.00015216,2]
[425840392,1781973038000,-200.0,0.00016434,7]
[425840381,1781973038000,-151.0,0.00015216,2]
[425840376,1781973038000,-151.0,0.00015216,2]
[425840434,1781973038000,-2937.07,0.000179,2]
[425840430,1781973038000,-327.49172816,0.000179,2]
[425840424,1781973038000,-993.34152341,0.000179,2]
[425840411,1781973038000,-13397.57848426,0.000179,2]
[425840406,1781973038000,-151.0,0.00017385,2]
[425840404,1781973038000,-151.0,0.00017385,2]
[425840402,1781973038000,-1500.0,0.00017175,2]
[425840396,1781973038000,-363.13713395,0.0001672,2]
[425840390,1781973038000,-151.0,0.00015706,2]
[425840398,1781973038000,-550.0,0.00017042,2]
[425840394,1781973038000,-592.53012296,0.00016518,2]
[425840400,1781973038000,-200.0,0.00017042,7]
[425840408,1781973038000,-1555.5,0.00017723,2]
[425840391,1781973038000,-200.0,0.00015977,7]
[425840380,1781973038000,-151.0,0.00015216,2]
[425840378,1781973038000,-151.0,0.00015216,2]
[425840382,1781973038000,-150.0,0.00015217,2]
[425840379,1781973038000,-151.0,0.00015216,2]
[425840384,1781973038000,-151.0,0.00015218,2]
[425840383,1781973038000,-153.0,0.00015217,2]
[425840388,1781973038000,-151.0,0.00015327,2]
[425840386,1781973038000,-160.0,0.00015231,2]
[425840387,1781973038000,-150.0,0.00015241,2]
[425840389,1781973038000,-200.0,0.00015521,7]
[425840385,1781973038000,-150.0,0.00015222,2]
[425840455,1781973039000,-367.0,0.0001815,2]
[425840454,1781973039000,-1211.76119311,0.00018109,2]
[425840452,1781973039000,-1401.66588873,0.000179,2]
[425840473,1781973040000,-573.0,0.00018592,2]
[425840474,1781973040000,-1036.587,0.00018592,2]
[425840475,1781973040000,-500.0,0.00018651,2]
[425840477,1781973040000,-1672.7364795,0.00018819,2]
[425840476,1781973040000,-1036.59098814,0.000187,2]
[425840478,1781973040000,-160.42,0.00018894,2]
[425840480,1781973040000,-564.37,0.00018998,2]
[425840482,1781973040000,-1036.59098814,0.000191,2]
[425840481,1781973040000,-340.74584181,0.0001908,2]
[425840483,1781973040000,-166.66,0.00019186,2]
[425840484,1781973040000,-500.0,0.0001919,2]
[425840485,1781973040000,-1036.59098814,0.000193,2]
[425840487,1781973040000,-1734.62772924,0.00019367,2]
[425840479,1781973040000,-1036.59098814,0.000189,2]
[425840472,1781973040000,-573.0,0.00018592,2]
[425840458,1781973040000,-537.42475576,0.00018268,2]
[425840469,1781973040000,-573.0,0.00018592,2]
[425840486,1781973040000,-151.05,0.00019323,2]
[425840456,1781973040000,-1044.57291816,0.00018268,2]
[425840459,1781973040000,-61.89148634,0.00018271,2]
[425840457,1781973040000,-418.00232608,0.00018268,2]
[425840460,1781973040000,-312.5,0.00018271,2]
[425840461,1781973040000,-500.0,0.00018271,2]
[425840471,1781973040000,-573.0,0.00018592,2]
[425840462,1781973040000,-738.66201366,0.00018271,2]
[425840464,1781973040000,-1659.9,0.000184,2]
[425840465,1781973040000,-268.8,0.0001841,2]
[425840466,1781973040000,-1036.59098814,0.000185,2]
[425840467,1781973040000,-573.0,0.00018592,2]
[425840468,1781973040000,-573.0,0.00018592,2]
[425840470,1781973040000,-573.0,0.00018592,2]
[425840463,1781973040000,-500.0,0.00018318,2]
[425840488,1781973040000,-166.66,0.0001959,2]
[425840541,1781973040000,-180.0,0.00021,2]
[425840508,1781973040000,-2770.34,0.0002,2]
[425840518,1781973040000,-268.8,0.00020381,2]
[425840514,1781973040000,-151.5,0.00020214,2]
[425840522,1781973040000,-1865.36488656,0.00020463,2]
[425840531,1781973040000,-6578.92,0.00020951,2]
[425840520,1781973040000,-166.66,0.00020398,2]
[425840524,1781973040000,-3093.5853,0.00020851,2]
[425840516,1781973040000,-353.45,0.00020273,2]
[425840523,1781973040000,-166.66,0.00020802,2]
[425840529,1781973040000,-1186.1,0.00020951,2]
[425840525,1781973040000,-9789.0566,0.00020851,2]
[425840533,1781973040000,-299.99,0.00020951,7]
[425840536,1781973040000,-860.95564249,0.00021,2]
[425840494,1781973040000,-180.0,0.0002,2]
[425840539,1781973040000,-192.0,0.00021,2]
[425840527,1781973040000,-9999.99,0.00020951,2]
[425840500,1781973040000,-311.0,0.0002,2]
[425840534,1781973040000,-150.99,0.00020951,2]
[425840493,1781973040000,-192.0,0.0002,2]
[425840499,1781973040000,-156.0,0.0002,2]
[425840512,1781973040000,-4999.99,0.00020145,2]
[425840491,1781973040000,-166.66,0.00019994,2]
[425840510,1781973040000,-545.41,0.00020054,2]
[425840497,1781973040000,-549.0,0.0002,2]
[425840504,1781973040000,-600.0,0.0002,2]
[425840506,1781973040000,-213.0,0.0002,2]
[425840492,1781973040000,-9999.999999,0.0002,2]
[425840502,1781973040000,-151.0,0.0002,2]
[425840489,1781973040000,-152.0,0.00019789,2]
[425840495,1781973040000,-173.0,0.0002,2]
[425840498,1781973040000,-181.0,0.0002,2]
[425840496,1781973040000,-645.0,0.0002,2]
[425840501,1781973040000,-154.0,0.0002,2]
[425840490,1781973040000,-1798.80895522,0.00019915,2]
[425840602,1781973041000,-151.0,0.00022107,2]
[425840589,1781973041000,-549.0,0.00022,2]
[425840592,1781973041000,-311.0,0.00022,2]
[425840596,1781973041000,-213.0,0.00022,2]
[425840597,1781973041000,-5918.23,0.00022,2]
[425840594,1781973041000,-151.0,0.00022,2]
[425840598,1781973041000,-160.42,0.00022043,2]
[425840599,1781973041000,-200.0,0.00022107,2]
[425840595,1781973041000,-600.0,0.00022,2]
[425840600,1781973041000,-174.61919141,0.00022107,2]
[425840601,1781973041000,-578.20924308,0.00022107,2]
[425840593,1781973041000,-154.0,0.00022,2]
[425840608,1781973041000,-500.0,0.00022107,2]
[425840603,1781973041000,-2080.17592889,0.00022107,2]
[425840605,1781973041000,-500.0,0.00022107,2]
[425840604,1781973041000,-151.0,0.00022107,2]
[425840606,1781973041000,-152.0,0.00022107,2]
[425840609,1781973041000,-151.0,0.00022107,2]
[425840607,1781973041000,-209.40437684,0.00022107,2]
[425840614,1781973041000,-152.65821072,0.00022107,2]
[425840611,1781973041000,-152.0,0.00022107,2]
[425840613,1781973041000,-500.0,0.00022107,2]
[425840612,1781973041000,-500.0,0.00022107,2]
[425840616,1781973041000,-152.0,0.00022107,2]
[425840591,1781973041000,-156.0,0.00022,2]
[425840610,1781973041000,-721.12765534,0.00022107,2]
[425840590,1781973041000,-181.0,0.00022,2]
[425840573,1781973041000,-216.28381402,0.00021012,2]